fUST/lending_fUST_20250424
["ID","MTS","AMOUNT","RATE_DAILY","PERIOD"]
[358868521,1745499032313,-2771.0177045,0.00018478,2]
[358868522,1745499032593,-487.63665643,0.00017808,2]
[358868523,1745499032603,-7729.22480943,0.00018478,2]
[358868525,1745499032614,-12291.94592153,0.00018478,2]
[358868585,1745499038005,-347207.81156454,0.00018478,2]
[358868587,1745499038015,-2438.76452462,0.00018593,2]
[358868589,1745499038024,-222.7476,0.00018612,2]
[358868591,1745499038034,-167.63532704,0.00018693,2]
[358868593,1745499038043,-167.63532704,0.00018913,2]
[358868595,1745499038053,-288.05475448,0.00019055,2]
[358868597,1745499038062,-167.63532704,0.00019132,2]
[358868599,1745499038071,-420.0,0.00019134,2]
[358868601,1745499038081,-500.0,0.00019173,2]
[358868603,1745499038090,-500.0,0.00019173,2]
[358868605,1745499038099,-500.0,0.00019173,2]
[358868607,1745499038108,-500.0,0.00019173,2]
[358868609,1745499038117,-500.0,0.00019173,2]
[358868611,1745499038127,-500.0,0.00019173,2]
[358868613,1745499038136,-500.0,0.00019173,2]
[358868615,1745499038145,-500.0,0.00019173,2]
[358868617,1745499038155,-500.0,0.00019173,2]
[358868619,1745499038164,-500.0,0.00019173,2]
[358868621,1745499038176,-500.0,0.00019173,2]
[358868623,1745499038185,-500.0,0.00019173,2]
[358868625,1745499038194,-500.0,0.00019173,2]
[358868627,1745499038203,-500.0,0.00019173,2]
[358868629,1745499038212,-500.0,0.00019173,2]
[358868631,1745499038221,-500.0,0.00019173,2]
[358868633,1745499038231,-500.0,0.00019173,2]
[358868634,1745499038240,-500.0,0.00019173,2]
[358868636,1745499038250,-500.0,0.00019173,2]
[358868638,1745499038259,-500.0,0.00019173,2]
[358868640,1745499038268,-500.0,0.00019178,2]
[358868642,1745499038277,-500.0,0.00019178,2]
[358868643,1745499038287,-500.0,0.00019178,2]
[358868644,1745499038296,-500.0,0.00019178,2]
[358868645,1745499038305,-500.0,0.00019178,2]
[358868646,1745499038314,-191.77239508,0.00019178,2]
[358868647,1745499038323,-500.0,0.00019178,2]
[358868648,1745499038332,-512.67,0.00019178,2]
[358868649,1745499038341,-500.0,0.00019178,2]
[358868650,1745499038351,-500.0,0.00019178,2]
[358868651,1745499038360,-500.0,0.00019178,2]
[358868652,1745499038368,-164.16792648,0.00019178,2]
[358868653,1745499038378,-500.0,0.00019178,2]
[358868654,1745499038386,-500.0,0.00019178,2]
[358868655,1745499038395,-500.0,0.00019178,2]
[358868656,1745499038405,-500.0,0.00019178,2]
[358868657,1745499038414,-192.550759,0.00019178,2]
[358868658,1745499038426,-500.0,0.00019178,2]
[358868659,1745499038436,-500.0,0.00019178,2]
[358868660,1745499038445,-500.0,0.00019178,2]
[358868661,1745499038455,-500.0,0.00019178,2]
[358868662,1745499038465,-926.61,0.00019178,2]
[358868663,1745499038474,-500.0,0.00019178,2]
[358868664,1745499038483,-500.0,0.00019178,2]
[358868665,1745499038493,-500.0,0.00019178,2]
[358868666,1745499038502,-377.59875643,0.00019178,2]
[358868667,1745499038512,-500.0,0.00019178,2]
[358868668,1745499038523,-500.0,0.00019178,2]
[358868669,1745499038532,-743.19,0.00019178,2]
[358868670,1745499038542,-720.28,0.00019178,2]
[358868671,1745499038552,-500.0,0.00019178,2]
[358868672,1745499038561,-500.0,0.00019178,2]
[358868673,1745499038571,-500.0,0.00019178,2]
[358868674,1745499038580,-500.0,0.00019178,2]
[358868675,1745499038589,-500.0,0.00019178,2]
[358868676,1745499038598,-500.0,0.00019178,2]
[358868677,1745499038607,-500.0,0.00019178,2]
[358868678,1745499038617,-500.0,0.00019178,2]
[358868679,1745499038627,-500.0,0.00019178,2]
[358868680,1745499038637,-500.0,0.00019178,2]
[358868681,1745499038646,-512.35601815,0.00019178,2]
[358868682,1745499038655,-500.0,0.00019178,2]
[358868683,1745499038665,-507.14471791,0.00019178,2]
[358868684,1745499038675,-500.0,0.00019178,2]
[358868685,1745499038684,-500.0,0.00019178,2]
[358868686,1745499038694,-500.0,0.00019178,2]
[358868687,1745499038703,-500.0,0.00019178,2]
[358868688,1745499038713,-500.0,0.00019178,2]
[358868689,1745499038723,-500.0,0.00019178,2]
[358868690,1745499038734,-500.0,0.00019178,2]
[358868691,1745499038743,-504.4368688,0.00019178,2]
[358868692,1745499038752,-500.0,0.00019178,2]
[358868693,1745499038762,-913.88,0.00019178,2]
[358868694,1745499038772,-500.0,0.00019178,2]
[358868695,1745499038783,-1167.59,0.00019178,2]
[358868696,1745499038792,-500.0,0.00019178,2]
[358868697,1745499038805,-500.0,0.00019178,2]
[358868698,1745499038814,-510.87734503,0.00019178,2]
[358868699,1745499038824,-500.0,0.00019178,2]
[358868700,1745499038834,-566.66,0.00019178,2]
[358868701,1745499038845,-500.0,0.00019178,2]
[358868702,1745499038855,-522.53,0.00019178,2]
[358868703,1745499038864,-1185.39,0.00019178,2]
[358868704,1745499038874,-500.0,0.00019178,2]
[358868705,1745499038884,-2268.98,0.00019178,2]
[358868706,1745499038894,-500.0,0.00019178,2]
[358868707,1745499038903,-653.59,0.00019178,2]
[358868708,1745499038913,-500.0,0.00019178,2]
[358868709,1745499038922,-578.54,0.00019178,2]
[358868710,1745499038932,-814.92,0.00019178,2]
[358868711,1745499038941,-500.0,0.00019178,2]
[358868712,1745499038951,-500.0,0.00019178,2]
[358868713,1745499038961,-500.0,0.00019178,2]
[358868714,1745499038971,-500.0,0.00019178,2]
[358868715,1745499038982,-500.0,0.00019178,2]
[358868716,1745499038993,-1000.0,0.00019178,2]
[358868717,1745499039004,-642.96,0.00019178,2]
[358868718,1745499039014,-500.0,0.00019178,2]
[358868719,1745499039024,-509.09578497,0.00019178,2]
[358868720,1745499039034,-1094.92,0.00019178,2]
[358868721,1745499039043,-500.0,0.00019178,2]
[358868722,1745499039053,-500.0,0.00019178,2]
[358868723,1745499039063,-400.73634668,0.00019178,2]
[358868724,1745499039073,-500.0,0.00019178,2]
[358868725,1745499039083,-501.02104774,0.00019178,2]
[358868726,1745499039092,-716.78,0.00019178,2]
[358868727,1745499039102,-500.0,0.00019178,2]
[358868728,1745499039111,-500.0,0.00019178,2]
[358868729,1745499039121,-1205.12,0.00019178,2]
[358868730,1745499039132,-504.48898215,0.00019178,2]
[358868731,1745499039141,-1447.6,0.00019178,2]
[358868732,1745499039151,-500.0,0.00019178,2]
[358868733,1745499039161,-500.0,0.00019178,2]
[358868734,1745499039170,-601.02,0.00019178,2]
[358868735,1745499039180,-507.31,0.00019178,2]
[358868736,1745499039190,-500.0,0.00019178,2]
[358868737,1745499039199,-883.9,0.00019178,2]
[358868738,1745499039209,-500.0,0.00019178,2]
[358868739,1745499039218,-500.0,0.00019178,2]
[358868740,1745499039227,-1064.4,0.00019178,2]
[358868741,1745499039237,-500.0,0.00019178,2]
[358868742,1745499039246,-242.75708961,0.00019178,2]
[358868743,1745499039256,-639.40498532,0.00019178,2]
[358868744,1745499039266,-2919.44,0.00019178,2]
[358868745,1745499039276,-466.83377839,0.00019178,2]
[358868746,1745499039285,-500.0,0.00019178,2]
[358868747,1745499039295,-500.0,0.00019178,2]
[358868748,1745499039305,-500.0,0.00019178,2]
[358868749,1745499039314,-686.64,0.00019178,2]
[358868750,1745499039324,-617.88511885,0.00019178,2]
[358868751,1745499039333,-500.0,0.00019178,2]
[358868752,1745499039343,-500.0,0.00019178,2]
[358868753,1745499039353,-501.20866576,0.00019178,2]
[358868754,1745499039362,-500.0,0.00019178,2]
[358868755,1745499039374,-500.0,0.00019178,2]
[358868756,1745499039383,-500.0,0.00019178,2]
[358868757,1745499039393,-500.0,0.00019178,2]
[358868758,1745499039403,-845.11,0.00019178,2]
[358868759,1745499039580,-500.0,0.00019178,2]
[358868760,1745499039592,-514.3,0.00019178,2]
[358868761,1745499039601,-500.0,0.00019178,2]
[358868762,1745499039611,-500.0,0.00019178,2]
[358868763,1745499039621,-503.31382095,0.00019178,2]
[358868764,1745499039631,-596.18538446,0.00019178,2]
[358868765,1745499039641,-500.0,0.00019178,2]
[358868766,1745499039651,-774.96,0.00019178,2]
[358868767,1745499039660,-500.0,0.00019178,2]
[358868768,1745499039670,-500.0,0.00019178,2]
[358868769,1745499039680,-500.0,0.00019178,2]
[358868770,1745499039690,-500.0,0.00019178,2]
[358868771,1745499039700,-1109.1,0.00019178,2]
[358868773,1745499039709,-419.8076554,0.00019178,2]
[358868775,1745499039719,-679.96,0.00019178,2]
[358868776,1745499039729,-500.0,0.00019178,2]
[358868778,1745499039739,-500.0,0.00019178,2]
[358868779,1745499039748,-500.0,0.00019178,2]
[358868780,1745499039758,-500.0,0.00019178,2]
[358868781,1745499039768,-742.51,0.00019178,2]
[358868782,1745499039777,-500.0,0.00019178,2]
[358868783,1745499039787,-151.0,0.00019178,2]
[358868784,1745499039797,-500.0,0.00019178,2]
[358868785,1745499039812,-500.0,0.00019178,2]
[358868786,1745499039822,-552.98,0.00019178,2]
[358868787,1745499039831,-661.23,0.00019178,2]
[358868788,1745499039842,-500.0,0.00019178,2]
[358868790,1745499039858,-500.0,0.00019178,2]
[358868792,1745499039873,-275.60695391,0.00019178,2]
[358868795,1745499039885,-1573.27,0.00019178,2]
[358868798,1745499039896,-514.44,0.00019178,2]
[358868800,1745499039908,-510.60520705,0.00019178,2]
[358868802,1745499039918,-679.82,0.00019178,2]
[358868804,1745499039928,-674.14,0.00019178,2]
[358868806,1745499039937,-500.0,0.00019178,2]
[358868809,1745499039947,-500.0,0.00019178,2]
[358868811,1745499039956,-1008.29,0.00019178,2]
[358868812,1745499039966,-500.0,0.00019178,2]
[358868813,1745499039975,-500.0,0.00019178,2]
[358868814,1745499039984,-794.82,0.00019178,2]
[358868815,1745499039994,-500.0,0.00019178,2]
[358868816,1745499040002,-593.92,0.00019178,2]
[358868817,1745499040012,-500.0,0.00019178,2]
[358868818,1745499040022,-500.0,0.00019178,2]
[358868819,1745499040031,-500.0,0.00019178,2]
[358868820,1745499040041,-524.65146944,0.00019178,2]
[358868821,1745499040050,-562.99,0.00019178,2]
[358868822,1745499040059,-500.0,0.00019178,2]
[358868823,1745499040069,-500.0,0.00019178,2]
[358868824,1745499040079,-500.0,0.00019178,2]
[358868825,1745499040088,-500.0,0.00019178,2]
[358868826,1745499040098,-500.0,0.00019178,2]
[358868827,1745499040107,-500.0,0.00019178,2]
[358868828,1745499040116,-500.0,0.00019178,2]
[358868829,1745499040126,-500.0,0.00019178,2]
[358868830,1745499040135,-500.0,0.00019178,2]
[358868831,1745499040145,-500.0,0.00019178,2]
[358868832,1745499040154,-500.0,0.00019178,2]
[358868833,1745499040164,-500.0,0.00019178,2]
[358868834,1745499040173,-586.81,0.00019178,2]
[358868835,1745499040183,-500.0,0.00019178,2]
[358868836,1745499040193,-500.0,0.00019178,2]
[358868837,1745499040203,-500.0,0.00019178,2]
[358868838,1745499040212,-500.0,0.00019178,2]
[358868839,1745499040222,-500.0,0.00019178,2]
[358868840,1745499040232,-500.0,0.00019178,2]
[358868841,1745499040242,-500.0,0.00019178,2]
[358868842,1745499040253,-500.0,0.00019178,2]
[358868844,1745499040262,-969.42,0.00019178,2]
[358868845,1745499040272,-500.0,0.00019178,2]
[358868846,1745499040281,-500.0,0.00019178,2]
[358868847,1745499040291,-1312.76,0.00019178,2]
[358868848,1745499040300,-1631.32,0.00019178,2]
[358868849,1745499040310,-245.04110683,0.00019178,2]
[358868850,1745499040319,-500.0,0.00019178,2]
[358868851,1745499040328,-500.0,0.00019178,2]
[358868852,1745499040338,-500.0,0.00019178,2]
[358868853,1745499040348,-500.0,0.00019178,2]
[358868854,1745499040357,-500.0,0.00019178,2]
[358868855,1745499040366,-510.25166452,0.00019178,2]
[358868856,1745499040376,-500.0,0.00019178,2]
[358868857,1745499040386,-820.53,0.00019178,2]
[358868858,1745499040395,-500.0,0.00019178,2]
[358868859,1745499040404,-551.7,0.00019178,2]
[358868860,1745499040415,-508.14850248,0.00019178,2]
[358868861,1745499040424,-500.0,0.00019178,2]
[358868862,1745499040434,-500.0,0.00019178,2]
[358868863,1745499040444,-829.0,0.00019178,2]
[358868864,1745499040454,-501.62148324,0.00019178,2]
[358868865,1745499040463,-504.13450546,0.00019178,2]
[358868866,1745499040472,-500.0,0.00019178,2]
[358868867,1745499040482,-500.0,0.00019178,2]
[358868868,1745499040492,-500.0,0.00019178,2]
[358868869,1745499040501,-1365.59,0.00019178,2]
[358868870,1745499040510,-906.94,0.00019178,2]
[358868871,1745499040520,-807.37,0.00019178,2]
[358868872,1745499040529,-821.68,0.00019178,2]
[358868873,1745499040538,-1000.88,0.00019178,2]
[358868874,1745499040548,-607.15538036,0.00019178,2]
[358868875,1745499040557,-1061.56,0.00019178,2]
[358868876,1745499040567,-1053.44,0.00019178,2]
[358868877,1745499040577,-5825.87,0.00019178,2]
[358868878,1745499040587,-564.36,0.00019178,2]
[358868879,1745499040596,-500.0,0.00019178,2]
[358868880,1745499040606,-515.64641614,0.00019178,2]
[358868881,1745499040618,-500.0,0.00019178,2]
[358868882,1745499040627,-3760.89,0.00019178,2]
[358868883,1745499040637,-3023.75,0.00019178,2]
[358868884,1745499040646,-534.65,0.00019178,2]
[358868885,1745499040656,-1184.71,0.00019178,2]
[358868886,1745499040665,-602.3823,0.00019178,2]
[358868887,1745499040675,-500.0,0.00019178,2]
[358868888,1745499040684,-3915.15,0.00019178,2]
[358868889,1745499040694,-500.0,0.00019178,2]
[358868890,1745499040704,-602.5,0.00019178,2]
[358868891,1745499040714,-500.0,0.00019178,2]
[358868892,1745499040723,-500.0,0.00019178,2]
[358868893,1745499040733,-1083.31,0.00019178,2]
[358868894,1745499040743,-500.0,0.00019178,2]
[358868895,1745499040752,-508.83018846,0.00019178,2]
[358868896,1745499040762,-500.0,0.00019178,2]
[358868897,1745499040772,-769.75,0.00019178,2]
[358868898,1745499040781,-151.0,0.00019178,2]
[358868899,1745499040790,-500.0,0.00019178,2]
[358868900,1745499040800,-500.0,0.00019178,2]
[358868901,1745499040812,-500.0,0.00019178,2]
[358868902,1745499040822,-500.0,0.00019178,2]
[358868903,1745499040832,-500.0,0.00019178,2]
[358868904,1745499040843,-500.0,0.00019178,2]
[358868905,1745499040853,-260.82011822,0.00019178,2]
[358868906,1745499040863,-500.0,0.00019178,2]
[358868907,1745499040873,-500.0,0.00019178,2]
[358868908,1745499040883,-500.0,0.00019178,2]
[358868909,1745499040893,-500.0,0.00019178,2]
[358868910,1745499040902,-543.44,0.00019178,2]
[358868911,1745499040912,-1295.34,0.00019178,2]
[358868912,1745499040921,-500.0,0.00019178,2]
[358868913,1745499040931,-500.0,0.00019178,2]
[358868914,1745499040940,-500.0,0.00019178,2]
[358868915,1745499040949,-500.0,0.00019178,2]
[358868916,1745499040959,-500.0,0.00019178,2]
[358868917,1745499040969,-500.0,0.00019178,2]
[358868918,1745499040979,-500.0,0.00019178,2]
[358868919,1745499040988,-500.0,0.00019178,2]
[358868920,1745499040998,-3217.04,0.00019178,2]
[358868921,1745499041007,-1333.41,0.00019178,2]
[358868922,1745499041017,-500.0,0.00019178,2]
[358868923,1745499041027,-1611.32,0.00019178,2]
[358868924,1745499041037,-500.0,0.00019178,2]
[358868925,1745499041046,-500.0,0.00019178,2]
[358868926,1745499041055,-4373.15,0.00019178,2]
[358868927,1745499041065,-500.0,0.00019178,2]
[358868928,1745499041075,-500.0,0.00019178,2]
[358868929,1745499041085,-947.21,0.00019178,2]
[358868930,1745499041094,-500.0,0.00019178,2]
[358868931,1745499041104,-500.0,0.00019178,2]
[358868932,1745499041113,-4029.99,0.00019178,2]
[358868933,1745499041123,-1067.91,0.00019178,2]
[358868934,1745499041133,-500.0,0.00019178,2]
[358868935,1745499041143,-504.6676617,0.00019178,2]
[358868936,1745499041152,-500.0,0.00019178,2]
[358868937,1745499041161,-539.06,0.00019178,2]
[358868938,1745499041170,-888.99,0.00019178,2]
[358868939,1745499041180,-500.0,0.00019178,2]
[358868940,1745499041189,-500.0,0.00019178,2]
[358868941,1745499041199,-500.0,0.00019178,2]
[358868942,1745499041210,-628.58,0.00019178,2]
[358868943,1745499041220,-500.0,0.00019178,2]
[358868944,1745499041230,-500.0,0.00019178,2]
[358868945,1745499041239,-500.0,0.00019178,2]
[358868946,1745499041248,-500.0,0.00019178,2]
[358868947,1745499041258,-8295.67,0.00019178,2]
[358868948,1745499041268,-500.0,0.00019178,2]
[358868949,1745499041278,-266.99875747,0.00019178,2]
[358868950,1745499041287,-500.0,0.00019178,2]
[358868951,1745499041296,-844.81,0.00019178,2]
[358868952,1745499041306,-504.05371868,0.00019178,2]
[358868953,1745499041316,-1436.0,0.00019178,2]
[358868954,1745499041326,-500.0,0.00019178,2]
[358868955,1745499041336,-504.18676747,0.00019178,2]
[358868956,1745499041346,-500.0,0.00019178,2]
[358868957,1745499041355,-500.0,0.00019178,2]
[358868958,1745499041365,-500.0,0.00019178,2]
[358868959,1745499041374,-5442.83,0.00019178,2]
[358868960,1745499041383,-500.0,0.00019178,2]
[358868961,1745499041393,-500.0,0.00019178,2]
[358868962,1745499041403,-504.87985386,0.00019178,2]
[358868963,1745499041412,-1026.21,0.00019178,2]
[358868964,1745499041422,-2123.8,0.00019178,2]
[358868965,1745499041432,-500.0,0.00019178,2]
[358868966,1745499041441,-500.0,0.00019178,2]
[358868967,1745499041450,-576.39645204,0.00019178,2]
[358868968,1745499041460,-3982.53,0.00019178,2]
[358868969,1745499041470,-4016.98,0.00019178,2]
[358868970,1745499041479,-277.55965147,0.00019178,2]
[358868971,1745499041489,-500.0,0.00019178,2]
[358868972,1745499041498,-743.02,0.00019178,2]
[358868973,1745499041508,-502.87061232,0.00019178,2]
[358868974,1745499041517,-931.38,0.00019178,2]
[358868975,1745499041527,-500.0,0.00019178,2]
[358868976,1745499041537,-500.0,0.00019178,2]
[358868977,1745499041547,-1338.62,0.00019178,2]
[358868978,1745499041557,-500.0,0.00019178,2]
[358868979,1745499041566,-500.0,0.00019178,2]
[358868980,1745499041576,-500.0,0.00019178,2]
[358868981,1745499041587,-518.42208749,0.00019178,2]
[358868982,1745499041596,-944.82,0.00019178,2]
[358868983,1745499041606,-4176.96,0.00019178,2]
[358868984,1745499041616,-500.0,0.00019178,2]
[358868985,1745499041626,-535.83,0.00019178,2]
[358868986,1745499041636,-500.0,0.00019178,2]
[358868987,1745499041646,-863.36,0.00019178,2]
[358868988,1745499041656,-687.61,0.00019178,2]
[358868989,1745499041665,-618.37,0.00019178,2]
[358868990,1745499041675,-738.1,0.00019178,2]
[358868991,1745499041685,-500.0,0.00019178,2]
[358868992,1745499041697,-500.0,0.00019178,2]
[358868993,1745499041706,-500.0,0.00019178,2]
[358868994,1745499041715,-500.0,0.00019178,2]
[358868995,1745499041725,-2796.32,0.00019178,2]
[358868996,1745499041734,-500.0,0.00019178,2]
[358868997,1745499041744,-516.36,0.00019178,2]
[358868998,1745499041755,-547.8,0.00019178,2]
[358868999,1745499041765,-500.0,0.00019178,2]
[358869000,1745499041775,-1534.78,0.00019178,2]
[358869001,1745499041785,-4260.35,0.00019178,2]
[358869002,1745499041795,-500.0,0.00019178,2]
[358869003,1745499041810,-500.0,0.00019178,2]
[358869004,1745499041821,-508.63017885,0.00019178,2]
[358869005,1745499041831,-1737.02,0.00019178,2]
[358869006,1745499041841,-500.0,0.00019178,2]
[358869007,1745499041853,-695.87,0.00019178,2]
[358869008,1745499041863,-300.0,0.00019178,2]
[358869009,1745499041873,-500.0,0.00019233,2]
[358869010,1745499041882,-151.0,0.00019233,2]
[358869011,1745499041893,-50009.17641063,0.00019257,2]
[358869012,1745499041904,-255.0,0.00019288,2]
[358869013,1745499041913,-218.24766045,0.00019288,2]
[358869014,1745499041923,-160.0,0.00019301,2]
[358869015,1745499041933,-160.0,0.00019301,2]
[358869016,1745499041943,-12576.49486522,0.00019301,2]
[358869017,1745499041952,-160.0,0.00019301,2]
[358869018,1745499041962,-160.0,0.00019301,2]
[358869019,1745499041972,-420.89490186,0.00019301,2]
[358869020,1745499041982,-160.0,0.00019301,2]
[358869021,1745499041991,-840.0731918,0.00019301,2]
[358869022,1745499042001,-160.0,0.00019301,2]
[358869023,1745499042011,-71065.35823026,0.00019334,2]
[358869024,1745499042218,-6953.04499321,0.00019334,2]
[358869025,1745499042228,-151.0,0.00019334,2]
[358869026,1745499042238,-7443.019634,0.00019334,2]
[358869027,1745499042247,-7443.019634,0.00019334,2]
[358869028,1745499042256,-170.584,0.00019338,2]
[358869029,1745499042266,-167.63532704,0.00019352,2]
[358869030,1745499042275,-2816.8214417,0.0001937,2]
[358869031,1745499042284,-1048.89154315,0.00019452,3]
[358869036,1745499042721,-172.84398253,0.00018493,2]
[358869037,1745499042731,-507.15,0.00019178,2]
[358869038,1745499042741,-500.0,0.00019178,2]
[358869039,1745499042752,-1047.77013627,0.00019452,3]
[358869046,1745499046148,-500.0,0.00017527,2]
[358869047,1745499046160,-500.0,0.00017527,2]
[358869048,1745499046171,-500.0,0.00017527,2]
[358869049,1745499046180,-300.0,0.00017527,2]
[358869050,1745499046191,-504.71741946,0.00019178,2]
[358869051,1745499046201,-500.0,0.00019178,2]
[358869052,1745499046211,-500.0,0.00019178,2]
[358869053,1745499046220,-363.02685896,0.00019178,2]
[358869054,1745499046230,-500.0,0.00019178,2]
[358869055,1745499046241,-500.0,0.00019178,2]
[358869056,1745499046251,-500.0,0.00019178,2]
[358869057,1745499046261,-500.0,0.00019178,2]
[358869058,1745499046270,-500.0,0.00019178,2]
[358869059,1745499046280,-500.0,0.00019178,2]
[358869060,1745499046289,-500.0,0.00019178,2]
[358869061,1745499046299,-38.01376078,0.00019178,2]
[358869066,1745499079453,10000.0,0.00016,120]
[358869067,1745499095346,10000.0,0.00014,60]
[358869068,1745499115392,2300.0,0.00014,30]
[358869069,1745499115419,6461.0,0.00014,30]
[358869084,1745500044128,-300.0,0.00017239,2]
[358869085,1745500044150,-500.0,0.0001724,2]
[358869086,1745500044178,-500.0,0.0001724,2]
[358869087,1745500044199,-250.57003447,0.0001724,2]
[358869088,1745500044219,-26.59009478,0.0001724,2]
[358869091,1745500167105,-300.0,0.00017238,2]
[358869092,1745500167127,-344.76095432,0.00017239,2]
[358869093,1745500167148,-500.0,0.00017239,2]
[358869094,1745500167172,-500.0,0.00017239,2]
[358869095,1745500167196,-500.0,0.00017239,2]
[358869096,1745500167224,-500.0,0.00017239,2]
[358869097,1745500167246,-500.0,0.00017239,2]
[358869098,1745500167266,-500.0,0.00017239,2]
[358869099,1745500167288,-157.93232749,0.00017239,2]
[358869100,1745500167314,-500.0,0.00017239,2]
[358869101,1745500167528,-215.07989107,0.00017239,2]
[358869102,1745500167559,-479.66149474,0.00017239,2]
[358869103,1745500167586,-500.0,0.00017239,2]
[358869104,1745500167611,-500.0,0.00017239,2]
[358869105,1745500167635,-500.0,0.00017239,2]
[358869106,1745500167661,-500.0,0.00017239,2]
[358869107,1745500167687,-500.0,0.00017239,2]
[358869108,1745500167711,-500.0,0.00017239,2]
[358869109,1745500167737,-293.59699556,0.00017239,2]
[358869110,1745500167758,-587.0,0.00017241,2]
[358869111,1745500167779,-500.0,0.00017244,2]
[358869149,1745500232242,-300.0,0.00017472,2]
[358869150,1745500232253,-13339.1704276,0.00017473,2]
[358869151,1745500232263,-3134.60782451,0.00017708,2]
[358869152,1745500232274,-19375.3814813,0.00017743,2]
[358869153,1745500232284,-500.0,0.00018152,2]
[358869154,1745500232294,-251.425028,0.0001826,2]
[358869155,1745500232304,-177.156487,0.0001833,3]
[358869156,1745500232314,-161.811814,0.0001833,3]
[358869157,1745500232324,-5000.0,0.0001837,2]
[358869158,1745500232334,-288.05475448,0.00018691,2]
[358869159,1745500232344,-150.0,0.000189,2]
[358869160,1745500232354,-288.05475449,0.00018933,2]
[358869161,1745500232365,-208.6418282,0.00018979,2]
[358869162,1745500232375,-218.46160453,0.0001901,3]
[358869163,1745500232384,-151.0,0.00019067,2]
[358869164,1745500232394,-151.0,0.00019067,2]
[358869165,1745500232404,-222.7476,0.00019067,2]
[358869166,1745500232414,-208.64182819,0.00019072,2]
[358869167,1745500232424,-500.0,0.00019073,2]
[358869168,1745500232434,-500.0,0.00019073,2]
[358869169,1745500232444,-500.0,0.00019073,2]
[358869170,1745500232453,-500.0,0.00019073,2]
[358869171,1745500232464,-420.0,0.00019074,2]
[358869172,1745500232473,-128369.49130016,0.00019078,2]
[358869173,1745500232486,-2508.23760735,0.00019078,2]
[358869174,1745500232498,-16177.35057766,0.00019078,2]
[358869175,1745500232510,-10882.05032958,0.00019078,2]
[358869214,1745500238174,-241.33266803,0.00017472,2]
[358869216,1745500238187,-477.06633284,0.00017472,2]
[358869218,1745500238200,-500.0,0.00017808,2]
[358869221,1745500238212,-191.3456595,0.00017808,2]
[358869223,1745500238225,-43346.07715717,0.00019078,2]
[358869225,1745500238239,-68683.06373263,0.00019078,2]
[358869228,1745500238254,-100033.72929545,0.00019078,2]
[358869230,1745500238265,-158.5,0.000191,2]
[358869232,1745500238277,-500.0,0.00019107,2]
[358869234,1745500238288,-208.64182819,0.00019166,2]
[358869236,1745500238300,-500.0,0.00019173,2]
[358869239,1745500238311,-500.0,0.00019173,2]
[358869241,1745500238323,-500.0,0.00019173,2]
[358869243,1745500238335,-500.0,0.00019173,2]
[358869245,1745500238346,-500.0,0.00019173,2]
[358869247,1745500238358,-500.0,0.00019173,2]
[358869249,1745500238369,-500.0,0.00019173,2]